[Event "Live Chess"]
[Site "Chess.com"]
[Date "2023.05.21"]
[Round "-"]
[White "JoshMcK"]
[Black "Fazer180"]
[Result "0-1"]
[WhiteElo "1519"]
[BlackElo "1760"]
[TimeControl "300"]
[EndTime "16:23:35 PDT"]
[Termination "Fazer180 won by checkmate"]

1. e4 {[%clk 0:04:57.9]} 1... e6 {[%clk 0:04:58]} 2. d4 {[%clk 0:04:56.5]} 2...
d5 {[%clk 0:04:56.4]} 3. Nc3 {[%clk 0:04:53.2]} 3... Bb4 {[%clk 0:04:53.9]} 4.
e5 {[%clk 0:04:51.7]} 4... c5 {[%clk 0:04:51.7]} 5. a3 {[%clk 0:04:51]} 5...
Bxc3+ {[%clk 0:04:49.4]} 6. bxc3 {[%clk 0:04:50.9]} 6... Qc7 {[%clk 0:04:44.2]}
7. Qg4 {[%clk 0:04:49.9]} 7... f6 {[%clk 0:04:40.3]} 8. exf6 {[%clk 0:04:46.4]}
8... Nxf6 {[%clk 0:04:38.5]} 9. Qd1 {[%clk 0:04:39.4]} 9... Nc6 {[%clk
0:04:28.8]} 10. Nf3 {[%clk 0:04:36.7]} 10... O-O {[%clk 0:04:17.6]} 11. Be2
{[%clk 0:04:27.4]} 11... Ne4 {[%clk 0:04:13.4]} 12. Bd2 {[%clk 0:04:15.9]} 12...
cxd4 {[%clk 0:03:46]} 13. cxd4 {[%clk 0:04:13.4]} 13... e5 {[%clk 0:03:31.4]}
14. dxe5 {[%clk 0:04:09.3]} 14... Nxe5 {[%clk 0:03:28.6]} 15. Nxe5 {[%clk
0:04:07.4]} 15... Qxe5 {[%clk 0:03:25.7]} 16. O-O {[%clk 0:04:05.2]} 16... Bd7
{[%clk 0:02:41.2]} 17. Bb4 {[%clk 0:04:02.3]} 17... Rf6 {[%clk 0:02:34.4]} 18.
Bd3 {[%clk 0:03:53.8]} 18... Rh6 {[%clk 0:02:24.5]} 19. g3 {[%clk 0:03:47.8]}
19... Bh3 {[%clk 0:02:16.7]} 20. Re1 {[%clk 0:03:44.2]} 20... Qd4 {[%clk
0:01:51.9]} 21. Bxe4 {[%clk 0:03:33.7]} 21... Qxd1 {[%clk 0:01:48.2]} 22. Raxd1
{[%clk 0:03:30.3]} 22... dxe4 {[%clk 0:01:48.1]} 23. Rxe4 {[%clk 0:03:27.1]}
23... Bf5 {[%clk 0:01:46.8]} 24. Red4 {[%clk 0:03:25.4]} 24... Bxc2 {[%clk
0:01:38.8]} 25. Rd8+ {[%clk 0:03:20.5]} 25... Rxd8 {[%clk 0:01:38.2]} 26. Rxd8+
{[%clk 0:03:19.9]} 26... Kf7 {[%clk 0:01:37.2]} 27. Rd7+ {[%clk 0:03:17.1]}
27... Ke6 {[%clk 0:01:35.7]} 28. Rxb7 {[%clk 0:03:15.6]} 28... Kd5 {[%clk
0:01:26.6]} 29. Rxa7 {[%clk 0:03:12.3]} 29... Re6 {[%clk 0:01:19.3]} 30. Rxg7
{[%clk 0:03:02.6]} 30... Re4 {[%clk 0:01:15.7]} 31. Rg5+ {[%clk 0:02:52.1]}
31... Ke6 {[%clk 0:01:10.8]} 32. Rg7 {[%clk 0:02:40]} 32... Kf6 {[%clk
0:01:07.9]} 33. Rg8 {[%clk 0:02:31.2]} 33... Kf7 {[%clk 0:01:04.8]} 34. Rf8+
{[%clk 0:02:29.7]} 34... Kg7 {[%clk 0:01:03]} 35. Rd8 {[%clk 0:02:20.9]} 35...
Rc4 {[%clk 0:00:58.8]} 36. Rd7+ {[%clk 0:02:11.2]} 36... Kg6 {[%clk 0:00:53.8]}
37. h4 {[%clk 0:02:08.4]} 37... Be4 {[%clk 0:00:52.2]} 38. Rd6+ {[%clk
0:02:03.1]} 38... Kf7 {[%clk 0:00:48]} 39. Rd1 {[%clk 0:01:53]} 39... Bf3 {[%clk
0:00:44.5]} 40. Re1 {[%clk 0:01:50]} 40... Kf6 {[%clk 0:00:41.4]} 41. Be7+
{[%clk 0:01:47.8]} 41... Kf5 {[%clk 0:00:38.3]} 42. Bb4 {[%clk 0:01:45.2]} 42...
h5 {[%clk 0:00:36.7]} 43. Bd2 {[%clk 0:01:42]} 43... Kg4 {[%clk 0:00:35.3]} 44.
Bf4 {[%clk 0:01:37.5]} 44... Kh3 {[%clk 0:00:33.3]} 45. Kf1 {[%clk 0:01:23.5]}
45... Rc2 {[%clk 0:00:29.3]} 46. Ra1 {[%clk 0:01:16.7]} 46... Re2 {[%clk
0:00:23.4]} 47. a4 {[%clk 0:01:13.9]} 47... Kh2 {[%clk 0:00:21.5]} 48. a5 {[%clk
0:01:11.1]} 48... Re6 {[%clk 0:00:19.2]} 49. a6 {[%clk 0:01:05.9]} 49... Bg2#
{[%clk 0:00:18.2]} 0-1

[Event "Live Chess"]
[Site "Chess.com"]
[Date "2023.05.21"]
[Round "-"]
[White "Jo1ts"]
[Black "gmnorfolk"]
[Result "0-1"]
[WhiteElo "776"]
[BlackElo "2112"]
[TimeControl "300"]
[EndTime "16:23:39 PDT"]
[Termination "gmnorfolk won by resignation"]

1. d4 {[%clk 0:04:58.2]} 1... Nf6 {[%clk 0:04:58.4]} 2. Bf4 {[%clk 0:04:56.5]}
2... d5 {[%clk 0:04:56.8]} 3. Nf3 {[%clk 0:04:55.7]} 3... e6 {[%clk 0:04:56.2]}
4. e3 {[%clk 0:04:54.4]} 4... Bd6 {[%clk 0:04:55.8]} 5. Bg3 {[%clk 0:04:50.5]}
5... O-O {[%clk 0:04:54.5]} 6. Nbd2 {[%clk 0:04:48.3]} 6... c5 {[%clk 0:04:54]}
7. c3 {[%clk 0:04:46.1]} 7... b6 {[%clk 0:04:52.9]} 8. Ne5 {[%clk 0:04:39.4]}
8... Bb7 {[%clk 0:04:51.1]} 9. Bd3 {[%clk 0:04:34]} 9... Nc6 {[%clk 0:04:50]}
10. Ndf3 {[%clk 0:04:24]} 10... Qc7 {[%clk 0:04:47.9]} 11. Nxc6 {[%clk 0:04:07]}
11... Bxc6 {[%clk 0:04:44.6]} 12. Bxd6 {[%clk 0:04:04.9]} 12... Qxd6 {[%clk
0:04:43.1]} 13. Ne5 {[%clk 0:04:03.7]} 13... Bb7 {[%clk 0:04:40.6]} 14. O-O
{[%clk 0:03:57.7]} 14... Ne4 {[%clk 0:04:38.6]} 15. Bxe4 {[%clk 0:03:53.5]}
15... dxe4 {[%clk 0:04:36.6]} 16. Qg4 {[%clk 0:03:31.9]} 16... Ba6 {[%clk
0:04:25.9]} 17. Rfd1 {[%clk 0:03:22.9]} 17... f6 {[%clk 0:04:25]} 18. Ng6 {[%clk
0:03:08.1]} 18... hxg6 {[%clk 0:04:22.4]} 19. Qxg6 {[%clk 0:03:07.5]} 19... Bd3
{[%clk 0:04:13.1]} 20. h4 {[%clk 0:03:00.5]} 20... f5 {[%clk 0:04:11.8]} 21. h5
{[%clk 0:02:59]} 21... Rf6 {[%clk 0:04:11]} 0-1

[Event "Live Chess"]
[Site "Chess.com"]
[Date "2023.05.21"]
[Round "-"]
[White "yeetpizza74"]
[Black "HD_IN4k"]
[Result "1-0"]
[WhiteElo "465"]
[BlackElo "395"]
[TimeControl "300"]
[EndTime "16:23:43 PDT"]
[Termination "yeetpizza74 won by checkmate"]

1. e4 {[%clk 0:04:57.7]} 1... g6 {[%clk 0:04:56.7]} 2. d4 {[%clk 0:04:54.6]}
2... f5 {[%clk 0:04:52.1]} 3. Nc3 {[%clk 0:04:47.5]} 3... fxe4 {[%clk
0:04:50.2]} 4. Nxe4 {[%clk 0:04:46]} 4... b6 {[%clk 0:04:45.8]} 5. Nf3 {[%clk
0:04:36.2]} 5... Bb7 {[%clk 0:04:43.7]} 6. Bd3 {[%clk 0:04:33.7]} 6... d5 {[%clk
0:04:41]} 7. Nc3 {[%clk 0:04:27.6]} 7... e6 {[%clk 0:04:36]} 8. Bg5 {[%clk
0:04:25.3]} 8... Be7 {[%clk 0:04:30.4]} 9. Bxe7 {[%clk 0:04:23.5]} 9... Nxe7
{[%clk 0:04:28.9]} 10. O-O {[%clk 0:04:18.8]} 10... Nf5 {[%clk 0:04:18]} 11.
Bxf5 {[%clk 0:04:13.5]} 11... gxf5 {[%clk 0:04:15.2]} 12. Re1 {[%clk 0:04:12.4]}
12... h5 {[%clk 0:04:06.1]} 13. Rxe6+ {[%clk 0:04:06.3]} 13... Kd7 {[%clk
0:04:02.8]} 14. Rf6 {[%clk 0:03:59.5]} 14... Qxf6 {[%clk 0:03:55.2]} 15. Ne5+
{[%clk 0:03:49.5]} 15... Kc8 {[%clk 0:03:34.2]} 16. Qf3 {[%clk 0:03:41]} 16...
h4 {[%clk 0:03:29.8]} 17. Nxd5 {[%clk 0:03:32.5]} 17... Qg7 {[%clk 0:03:16.2]}
18. Qxf5+ {[%clk 0:02:56.4]} 18... Nd7 {[%clk 0:03:08.9]} 19. Nxd7 {[%clk
0:02:44.7]} 19... Rd8 {[%clk 0:03:01.3]} 20. N7xb6+ {[%clk 0:02:31.1]} 20... Kb8
{[%clk 0:02:56.6]} 21. Nxa8 {[%clk 0:02:29.3]} 21... Kxa8 {[%clk 0:02:54.8]} 22.
c4 {[%clk 0:02:11.2]} 22... c6 {[%clk 0:02:49.7]} 23. Nc7+ {[%clk 0:02:01.5]}
23... Kb8 {[%clk 0:02:45.7]} 24. Qf4 {[%clk 0:01:49.4]} 24... c5 {[%clk
0:02:33.9]} 25. Ne8+ {[%clk 0:01:44.5]} 25... Qc7 {[%clk 0:02:25.3]} 26. Nxc7
{[%clk 0:01:39]} 26... cxd4 {[%clk 0:02:16.5]} 27. Ne6+ {[%clk 0:01:36.8]} 27...
Rd6 {[%clk 0:02:12.3]} 28. Qxd6+ {[%clk 0:01:33.7]} 28... Ka8 {[%clk 0:02:10.3]}
29. Qd8+ {[%clk 0:01:32]} 29... Bc8 {[%clk 0:02:07.4]} 30. Qxc8# {[%clk
0:01:31.3]} 1-0

[Event "Live Chess"]
[Site "Chess.com"]
[Date "2023.05.21"]
[Round "-"]
[White "xx_blindpuffin_xx"]
[Black "fso"]
[Result "1/2-1/2"]
[WhiteElo "2209"]
[BlackElo "2237"]
[TimeControl "300"]
[EndTime "16:23:45 PDT"]
[Termination "Game drawn by repetition"]

1. d4 {[%clk 0:04:57.7]} 1... Nf6 {[%clk 0:04:55.3]} 2. Bf4 {[%clk 0:04:56.8]}
2... d5 {[%clk 0:04:51.7]} 3. e3 {[%clk 0:04:56.1]} 3... e6 {[%clk 0:04:51.1]}
4. Nf3 {[%clk 0:04:55.1]} 4... Bd6 {[%clk 0:04:50.7]} 5. Bg3 {[%clk 0:04:54.8]}
5... Bxg3 {[%clk 0:04:49.5]} 6. hxg3 {[%clk 0:04:53.6]} 6... h6 {[%clk
0:04:49.2]} 7. c4 {[%clk 0:04:51.9]} 7... O-O {[%clk 0:04:46.1]} 8. Nc3 {[%clk
0:04:51.1]} 8... c6 {[%clk 0:04:44.3]} 9. Bd3 {[%clk 0:04:45.2]} 9... dxc4
{[%clk 0:04:42.8]} 10. Bxc4 {[%clk 0:04:44]} 10... Nbd7 {[%clk 0:04:42.4]} 11.
O-O {[%clk 0:04:39.5]} 11... Qc7 {[%clk 0:04:41]} 12. e4 {[%clk 0:04:34.1]}
12... b5 {[%clk 0:04:27.7]} 13. Bd3 {[%clk 0:04:32.4]} 13... b4 {[%clk
0:04:18.8]} 14. Na4 {[%clk 0:04:29.6]} 14... c5 {[%clk 0:04:16.5]} 15. Rc1
{[%clk 0:04:23.6]} 15... Bb7 {[%clk 0:04:10.6]} 16. Nxc5 {[%clk 0:04:20.4]}
16... Nxc5 {[%clk 0:04:09]} 17. Rxc5 {[%clk 0:04:18.8]} 17... Qd8 {[%clk
0:03:59.3]} 18. Qe2 {[%clk 0:04:10]} 18... a5 {[%clk 0:03:53.2]} 19. Rfc1 {[%clk
0:04:07.2]} 19... Rc8 {[%clk 0:03:44.2]} 20. a3 {[%clk 0:03:48.4]} 20... Rxc5
{[%clk 0:03:30.6]} 21. Rxc5 {[%clk 0:03:48.3]} 21... Nd7 {[%clk 0:03:24.3]} 22.
Rc1 {[%clk 0:03:43.5]} 22... e5 {[%clk 0:03:18.8]} 23. d5 {[%clk 0:03:41.5]}
23... f5 {[%clk 0:03:11.8]} 24. Bb5 {[%clk 0:03:32.8]} 24... fxe4 {[%clk
0:02:54.3]} 25. Bxd7 {[%clk 0:02:52.3]} 25... Qxd7 {[%clk 0:02:40.6]} 26. Qxe4
{[%clk 0:02:50.3]} 26... Bxd5 {[%clk 0:02:35.3]} 27. Qxe5 {[%clk 0:02:38.8]}
27... Bxf3 {[%clk 0:02:30.2]} 28. gxf3 {[%clk 0:02:38.7]} 28... Rxf3 {[%clk
0:01:32]} 29. Rc7 {[%clk 0:02:30.1]} 29... Qd1+ {[%clk 0:01:30.2]} 30. Kg2
{[%clk 0:02:27.8]} 30... Rf7 {[%clk 0:01:29.1]} 31. Qe8+ {[%clk 0:02:24.9]}
31... Rf8 {[%clk 0:01:28]} 32. Qe6+ {[%clk 0:02:22.5]} 32... Kh8 {[%clk
0:01:26.9]} 33. Qe7 {[%clk 0:02:10.6]} 33... Qf3+ {[%clk 0:01:24.6]} 34. Kh3
{[%clk 0:02:02.1]} 34... Qf5+ {[%clk 0:01:21.8]} 35. Kh4 {[%clk 0:01:50.8]}
35... Qf6+ {[%clk 0:00:32.5]} 36. Qxf6 {[%clk 0:01:49.6]} 36... Rxf6 {[%clk
0:00:32.4]} 37. axb4 {[%clk 0:01:46.5]} 37... Rxf2 {[%clk 0:00:28.5]} 38. bxa5
{[%clk 0:01:44.9]} 38... Rxb2 {[%clk 0:00:28.2]} 39. a6 {[%clk 0:01:41.2]} 39...
Ra2 {[%clk 0:00:27.8]} 40. a7 {[%clk 0:01:39.8]} 40... Kh7 {[%clk 0:00:27.3]}
41. g4 {[%clk 0:01:38.4]} 41... Ra3 {[%clk 0:00:25]} 42. g5 {[%clk 0:01:31.1]}
42... Ra4+ {[%clk 0:00:23.7]} 43. Kh5 {[%clk 0:01:14.2]} 43... Ra5 {[%clk
0:00:22.4]} 44. Kh4 {[%clk 0:01:08.2]} 44... Ra4+ {[%clk 0:00:21.8]} 45. Kh5
{[%clk 0:01:07.1]} 45... Ra5 {[%clk 0:00:20.9]} 46. Kh4 {[%clk 0:01:06.5]} 46...
Ra4+ {[%clk 0:00:20.1]} 1/2-1/2

[Event "Live Chess"]
[Site "Chess.com"]
[Date "2023.05.21"]
[Round "-"]
[White "Missedidea"]
[Black "sanjesh_ananda"]
[Result "1-0"]
[WhiteElo "1820"]
[BlackElo "1283"]
[TimeControl "300"]
[EndTime "16:24:01 PDT"]
[Termination "Missedidea won on time"]

1. d4 {[%clk 0:04:57.9]} 1... d5 {[%clk 0:04:58.7]} 2. c4 {[%clk 0:04:56.4]}
2... e6 {[%clk 0:04:56.9]} 3. Nc3 {[%clk 0:04:54.7]} 3... Nf6 {[%clk 0:04:55.5]}
4. Bg5 {[%clk 0:04:52.7]} 4... Be7 {[%clk 0:04:54]} 5. e3 {[%clk 0:04:51.7]}
5... h6 {[%clk 0:04:47.6]} 6. Bh4 {[%clk 0:04:49.8]} 6... Nc6 {[%clk 0:04:33.9]}
7. Nf3 {[%clk 0:04:48.1]} 7... b6 {[%clk 0:04:27.6]} 8. Bd3 {[%clk 0:04:38.5]}
8... O-O {[%clk 0:04:23.7]} 9. O-O {[%clk 0:04:36.6]} 9... Bb7 {[%clk
0:04:18.1]} 10. b3 {[%clk 0:04:34.7]} 10... Nb4 {[%clk 0:04:13.1]} 11. Be2
{[%clk 0:04:30.7]} 11... g5 {[%clk 0:03:20.9]} 12. Bg3 {[%clk 0:04:28.2]} 12...
Nh5 {[%clk 0:03:02.8]} 13. Ne5 {[%clk 0:04:20.4]} 13... Nxg3 {[%clk 0:02:57]}
14. hxg3 {[%clk 0:04:17.6]} 14... dxc4 {[%clk 0:02:18.4]} 15. bxc4 {[%clk
0:04:11.6]} 15... Nc6 {[%clk 0:01:36.5]} 16. f4 {[%clk 0:04:08.5]} 16... Qe8
{[%clk 0:01:26.2]} 17. Bh5 {[%clk 0:03:56.4]} 17... Nxe5 {[%clk 0:01:17.8]} 18.
fxe5 {[%clk 0:03:52.3]} 18... Qc6 {[%clk 0:01:14.6]} 19. Qe2 {[%clk 0:03:48.3]}
19... Qd7 {[%clk 0:00:28.4]} 20. Rad1 {[%clk 0:03:36.8]} 20... Rad8 {[%clk
0:00:16.1]} 21. d5 {[%clk 0:03:21.3]} 21... Qc8 {[%clk 0:00:13.7]} 22. e4 {[%clk
0:03:10.6]} 22... Kg7 {[%clk 0:00:09.9]} 23. Rf3 {[%clk 0:02:54.6]} 23... Bc5+
{[%clk 0:00:08.1]} 24. Kh1 {[%clk 0:02:50.9]} 24... exd5 {[%clk 0:00:03.8]} 25.
exd5 {[%clk 0:02:36.5]} 1-0

[Event "Live Chess"]
[Site "Chess.com"]
[Date "2023.05.21"]
[Round "-"]
[White "Hussamalhaidar"]
[Black "Biranidun"]
[Result "0-1"]
[WhiteElo "1039"]
[BlackElo "2691"]
[TimeControl "300"]
[EndTime "16:24:01 PDT"]
[Termination "Biranidun won by resignation"]

1. b3 {[%clk 0:04:55.8]} 1... e5 {[%clk 0:04:58.8]} 2. Bb2 {[%clk 0:04:54.8]}
2... Nc6 {[%clk 0:04:58.7]} 3. e3 {[%clk 0:04:53]} 3... Nf6 {[%clk 0:04:58.3]}
4. Bb5 {[%clk 0:04:51.7]} 4... Bd6 {[%clk 0:04:57.8]} 5. Nf3 {[%clk 0:04:47]}
5... Qe7 {[%clk 0:04:56.5]} 6. Bxc6 {[%clk 0:04:43.5]} 6... dxc6 {[%clk
0:04:56.4]} 7. Nc3 {[%clk 0:04:40.2]} 7... e4 {[%clk 0:04:54.4]} 8. Ng5 {[%clk
0:04:35.5]} 8... h6 {[%clk 0:04:52.8]} 9. Ngxe4 {[%clk 0:04:26.4]} 9... Nxe4
{[%clk 0:04:51.5]} 10. Nxe4 {[%clk 0:04:25.3]} 10... Qxe4 {[%clk 0:04:51.4]} 11.
Bxg7 {[%clk 0:04:23.4]} 11... Rg8 {[%clk 0:04:50.4]} 12. Bxh6 {[%clk 0:04:19.2]}
12... Qxg2 {[%clk 0:04:48.7]} 13. Rf1 {[%clk 0:04:14.6]} 13... Bg4 {[%clk
0:04:47.4]} 14. Qc1 {[%clk 0:04:07.9]} 14... Bh3 {[%clk 0:04:46.8]} 15. Ke2
{[%clk 0:03:52.2]} 15... Bg4+ {[%clk 0:04:44.9]} 16. Kd3 {[%clk 0:03:49.2]}
16... Be5 {[%clk 0:04:33.8]} 17. c4 {[%clk 0:03:35.6]} 17... Bf5+ {[%clk
0:04:28.7]} 18. Ke2 {[%clk 0:03:25.7]} 18... Bxa1 {[%clk 0:04:25.3]} 19. Qxa1
{[%clk 0:03:22.7]} 19... O-O-O {[%clk 0:04:23.8]} 20. Bf4 {[%clk 0:03:13.8]}
20... Bd3+ {[%clk 0:04:22.9]} 0-1

[Event "Live Chess"]
[Site "Chess.com"]
[Date "2023.05.21"]
[Round "-"]
[White "ZackirtyChess"]
[Black "Doge_Dandolo"]
[Result "1-0"]
[WhiteElo "1175"]
[BlackElo "2011"]
[TimeControl "300"]
[EndTime "16:24:04 PDT"]
[Termination "ZackirtyChess won by resignation"]

1. e4 {[%clk 0:04:56.9]} 1... c6 {[%clk 0:04:58.7]} 2. d4 {[%clk 0:04:55.1]}
2... d5 {[%clk 0:04:57.7]} 3. Nc3 {[%clk 0:04:54.1]} 3... dxe4 {[%clk
0:04:56.8]} 4. Nxe4 {[%clk 0:04:54]} 4... Bf5 {[%clk 0:04:56]} 5. Ng3 {[%clk
0:04:52.5]} 5... Bg6 {[%clk 0:04:55]} 6. Nf3 {[%clk 0:04:51.5]} 6... Nd7 {[%clk
0:04:53.4]} 7. Bd3 {[%clk 0:04:48.3]} 7... e6 {[%clk 0:04:50]} 8. Ne5 {[%clk
0:04:46.4]} 8... Nxe5 {[%clk 0:04:45]} 9. dxe5 {[%clk 0:04:44]} 9... Ne7 {[%clk
0:04:42.8]} 10. O-O {[%clk 0:04:40.2]} 10... Nd5 {[%clk 0:04:41]} 11. Bxg6
{[%clk 0:04:38]} 11... hxg6 {[%clk 0:04:39.3]} 12. Qf3 {[%clk 0:04:35.5]} 12...
Qc7 {[%clk 0:04:36.6]} 13. Bf4 {[%clk 0:04:32.6]} 13... Be7 {[%clk 0:04:33]} 14.
b3 {[%clk 0:04:24.8]} 14... O-O-O {[%clk 0:04:29.3]} 15. c4 {[%clk 0:04:22.9]}
15... Nxf4 {[%clk 0:04:28]} 16. Qxf4 {[%clk 0:04:20.7]} 16... Rh4 {[%clk
0:04:26.3]} 17. Qxf7 {[%clk 0:04:16.4]} 17... Rdh8 {[%clk 0:04:23]} 18. Qxg7
{[%clk 0:04:09.4]} 18... Rxh2 {[%clk 0:04:18]} 19. Qxg6 {[%clk 0:04:07]} 19...
Qxe5 {[%clk 0:04:07.6]} 20. Rfe1 {[%clk 0:03:56.2]} 20... Qc7 {[%clk 0:03:43.1]}
21. Qxe6+ {[%clk 0:03:52.7]} 21... Kb8 {[%clk 0:03:40.4]} 22. Qxe7 {[%clk
0:03:47.6]} 1-0

[Event "Live Chess"]
[Site "Chess.com"]
[Date "2023.05.21"]
[Round "-"]
[White "AlanPaling"]
[Black "KGreenGator"]
[Result "1-0"]
[WhiteElo "1382"]
[BlackElo "1751"]
[TimeControl "300"]
[EndTime "16:24:12 PDT"]
[Termination "AlanPaling won by checkmate"]

1. c4 {[%clk 0:04:54.3]} 1... Nf6 {[%clk 0:04:58.2]} 2. Nc3 {[%clk 0:04:52.8]}
2... e5 {[%clk 0:04:57.1]} 3. g3 {[%clk 0:04:50.9]} 3... Nc6 {[%clk 0:04:56.6]}
4. Bg2 {[%clk 0:04:49.1]} 4... Bc5 {[%clk 0:04:54]} 5. e3 {[%clk 0:04:47.9]}
5... O-O {[%clk 0:04:48.4]} 6. Nge2 {[%clk 0:04:46.5]} 6... a6 {[%clk
0:04:47.6]} 7. O-O {[%clk 0:04:36.3]} 7... Ne7 {[%clk 0:04:41.7]} 8. h3 {[%clk
0:04:33.3]} 8... d6 {[%clk 0:04:40.2]} 9. b3 {[%clk 0:04:27.6]} 9... Rb8 {[%clk
0:04:38.8]} 10. d4 {[%clk 0:04:21.5]} 10... exd4 {[%clk 0:04:36]} 11. exd4
{[%clk 0:04:20.2]} 11... Ba7 {[%clk 0:04:35.6]} 12. Bg5 {[%clk 0:04:14.5]} 12...
Nc6 {[%clk 0:04:32.9]} 13. Nd5 {[%clk 0:04:05.2]} 13... Be6 {[%clk 0:04:26.6]}
14. Nxf6+ {[%clk 0:03:50.6]} 14... gxf6 {[%clk 0:04:24]} 15. Bh6 {[%clk
0:03:48.4]} 15... Re8 {[%clk 0:04:22.6]} 16. d5 {[%clk 0:03:46.8]} 16... Bf5
{[%clk 0:04:15.1]} 17. dxc6 {[%clk 0:03:44]} 17... bxc6 {[%clk 0:04:12.5]} 18.
Bxc6 {[%clk 0:03:19.8]} 18... Re7 {[%clk 0:04:09.5]} 19. Bg2 {[%clk 0:03:16.9]}
19... Qe8 {[%clk 0:04:03.3]} 20. Nf4 {[%clk 0:03:12.4]} 20... Be4 {[%clk
0:03:47.6]} 21. Nh5 {[%clk 0:02:50.5]} 21... Re6 {[%clk 0:03:27.8]} 22. Bxe4
{[%clk 0:02:45.4]} 22... Qe7 {[%clk 0:03:19.8]} 23. Qg4+ {[%clk 0:02:42.4]}
23... Kh8 {[%clk 0:03:15.4]} 24. Qg7# {[%clk 0:02:41.4]} 1-0

[Event "Live Chess"]
[Site "Chess.com"]
[Date "2023.05.21"]
[Round "-"]
[White "domrobson"]
[Black "Tushinskiy"]
[Result "0-1"]
[WhiteElo "1769"]
[BlackElo "2171"]
[TimeControl "300"]
[EndTime "16:24:17 PDT"]
[Termination "Tushinskiy won by resignation"]

1. d4 {[%clk 0:04:59.1]} 1... d5 {[%clk 0:04:58.4]} 2. c4 {[%clk 0:04:58.5]}
2... c6 {[%clk 0:04:58.3]} 3. Nf3 {[%clk 0:04:57.1]} 3... f6 {[%clk 0:04:57.1]}
4. Nc3 {[%clk 0:04:56.6]} 4... e6 {[%clk 0:04:56.3]} 5. e4 {[%clk 0:04:54.8]}
5... dxe4 {[%clk 0:04:54.8]} 6. Nxe4 {[%clk 0:04:54]} 6... Bb4+ {[%clk
0:04:53.7]} 7. Bd2 {[%clk 0:04:52.9]} 7... Bxd2+ {[%clk 0:04:52.6]} 8. Qxd2
{[%clk 0:04:52]} 8... Ne7 {[%clk 0:04:52.5]} 9. Bd3 {[%clk 0:04:51.2]} 9... O-O
{[%clk 0:04:51.4]} 10. O-O {[%clk 0:04:49.9]} 10... Nf5 {[%clk 0:04:50.4]} 11.
Nc3 {[%clk 0:04:45.9]} 11... Kh8 {[%clk 0:04:47.6]} 12. d5 {[%clk 0:04:43.5]}
12... cxd5 {[%clk 0:04:44.4]} 13. cxd5 {[%clk 0:04:42.4]} 13... e5 {[%clk
0:04:43.6]} 14. Be4 {[%clk 0:04:39.3]} 14... Nd6 {[%clk 0:04:42.1]} 15. Bc2
{[%clk 0:04:35.5]} 15... Bg4 {[%clk 0:04:38.1]} 16. Qd3 {[%clk 0:04:33.8]} 16...
g6 {[%clk 0:04:23.4]} 17. Qe3 {[%clk 0:04:20.2]} 17... Na6 {[%clk 0:04:20.9]}
18. a3 {[%clk 0:04:18.6]} 18... Kg7 {[%clk 0:04:18.9]} 19. h3 {[%clk 0:04:14.8]}
19... Bxf3 {[%clk 0:04:08.1]} 20. Qxf3 {[%clk 0:04:13.1]} 20... Rc8 {[%clk
0:04:07.3]} 21. Rac1 {[%clk 0:04:03.4]} 21... Qb6 {[%clk 0:04:05.9]} 22. b4
{[%clk 0:04:00.1]} 22... Qd4 {[%clk 0:03:55.6]} 23. Bb3 {[%clk 0:03:44.8]} 23...
e4 {[%clk 0:03:43.6]} 24. Qg3 {[%clk 0:03:42.4]} 24... Nf5 {[%clk 0:03:42.1]}
25. Ne2 {[%clk 0:03:17]} 25... Qd2 {[%clk 0:03:27.8]} 26. Qg4 {[%clk 0:03:13.5]}
26... h5 {[%clk 0:03:20.2]} 27. Qxe4 {[%clk 0:03:12.1]} 27... Rce8 {[%clk
0:03:19]} 28. Rc2 {[%clk 0:02:56.5]} 28... Rxe4 {[%clk 0:03:06.4]} 29. Rxd2
{[%clk 0:02:54.8]} 29... Rfe8 {[%clk 0:03:00.8]} 30. Nc3 {[%clk 0:02:52.7]}
30... Re1 {[%clk 0:02:59.7]} 31. d6 {[%clk 0:02:45.2]} 31... Rxf1+ {[%clk
0:02:57.9]} 32. Kxf1 {[%clk 0:02:44.3]} 32... Rd8 {[%clk 0:02:57.8]} 33. d7
{[%clk 0:02:41.8]} 33... Nb8 {[%clk 0:02:57.1]} 34. Be6 {[%clk 0:02:35]} 34...
Nh6 {[%clk 0:02:53.3]} 35. Nb5 {[%clk 0:02:33.5]} 35... Nf7 {[%clk 0:02:41.7]}
36. Nxa7 {[%clk 0:02:20.3]} 36... Ng5 {[%clk 0:02:32.9]} 37. Bb3 {[%clk
0:01:59.3]} 37... Ne4 {[%clk 0:02:19.7]} 38. Re2 {[%clk 0:01:53.1]} 38... f5
{[%clk 0:02:17.7]} 39. f3 {[%clk 0:01:51.8]} 39... Ng3+ {[%clk 0:02:16]} 40. Kf2
{[%clk 0:01:50.5]} 40... Nxe2 {[%clk 0:02:15.9]} 41. Kxe2 {[%clk 0:01:50]} 41...
Rxd7 {[%clk 0:02:14.5]} 42. Nb5 {[%clk 0:01:49.3]} 42... Kf6 {[%clk 0:02:11.9]}
43. Nc3 {[%clk 0:01:47]} 43... Nc6 {[%clk 0:02:08.8]} 44. Nd5+ {[%clk
0:01:42.5]} 44... Ke5 {[%clk 0:02:07.2]} 45. f4+ {[%clk 0:01:39.5]} 45... Kd4
{[%clk 0:02:06]} 46. Nb6 {[%clk 0:01:37.3]} 46... Re7+ {[%clk 0:02:03.8]} 47.
Kf3 {[%clk 0:01:35.3]} 47... Re3+ {[%clk 0:02:02.2]} 48. Kf2 {[%clk 0:01:34.6]}
48... Rxb3 {[%clk 0:02:02.1]} 0-1